bitfinex-derivatives/quotes_ETHF0:USTF0_20260222
["timestamp","ask_amount","ask_price","bid_price","bid_amount"]
[1771728782688,0.55974651,1975.3,1974.4,0.57180195]
[1771728783285,0.55974651,1975.3,1974.6,0.56190689]
[1771728783685,0.56477641,1975.3,1974.6,0.56190689]
[1771728792489,0.5703281,1975.1,1974.0,0.57975369]
[1771728794086,0.575358,1975.3,1974.2,0.57975369]
[1771728794488,7.87935748,1975.0,1974.2,0.57975369]
[1771728799494,8.44968558,1975.0,1974.2,0.57975369]
[1771728799995,0.5703281,1974.9,1974.2,0.57975369]
[1771728802497,0.5703281,1974.9,1974.3,0.57975369]
[1771728804497,0.5703281,1975.2,1974.3,0.57975369]
[1771728805301,0.5703281,1975.2,1974.3,8.54021333]
[1771728805496,0.5703281,1975.2,1974.4,0.57975369]
[1771728823314,0.5703281,1975.2,1974.4,8.54021333]
[1771728823516,0.5703281,1975.2,1974.5,0.55589862]
[1771728823813,7.87935748,1974.8,1974.5,0.55589862]
[1771728825213,0.55958889,1975.0,1974.5,0.55589862]
[1771728825513,0.55958889,1975.2,1974.5,0.55589862]
[1771728835919,0.55958889,1975.2,1974.6,0.55589862]
[1771728842628,0.55958889,1975.2,1974.5,2.19737189]
[1771728842823,8.43894637,1974.9,1974.6,0.55589862]
[1771728843931,0.55958889,1974.8,1974.5,2.19737189]
[1771728844529,0.55958889,1975.2,1974.6,0.55589862]
[1771728853131,0.55958889,1975.2,1974.8,0.58148099]
[1771728853336,0.55958889,1975.2,1974.8,0.58740417]
[1771728854739,0.55958889,1975.2,1974.9,2.22295426]
[1771728854938,0.55958889,1975.2,1975.0,0.58148099]
[1771728855240,0.55958889,1975.2,1974.9,0.58148099]
[1771728867546,0.56432415,1975.3,1974.9,0.58148099]
[1771728867745,7.87935748,1975.1,1974.9,0.58148099]
[1771728873149,8.43865173,1975.1,1974.8,0.00592318]
[1771728873356,0.55929425,1975.0,1974.6,0.58148099]
[1771728874255,0.55929425,1975.0,1974.6,0.5873012]
[1771728880260,0.55929425,1975.0,1974.6,0.00582021]
[1771728883260,0.55929425,1975.0,1974.6,0.55139574]
[1771728884263,7.87935748,1974.7,1974.6,0.55139574]
[1771728884465,0.56624034,1974.9,1974.6,0.55139574]
[1771728885867,0.0050299,1975.3,1974.9,0.54557553]
[1771728886067,0.57127024,1975.3,1974.9,0.54557553]
[1771728887868,0.0050299,1975.3,1975.1,0.54557553]
[1771728888069,0.56534706,1975.4,1975.1,0.54557553]
[1771728889170,0.5708089,1975.4,1975.1,0.54557553]
[1771728891267,0.5708089,1975.4,1974.8,0.54557553]
[1771728891469,0.56624034,1975.3,1974.6,2.19286901]
[1771728891768,0.56624034,1975.3,1974.7,0.54557553]
[1771728893166,0.56624034,1975.1,1974.6,0.55139574]
[1771728906896,0.56624034,1975.1,1974.4,0.54557553]
[1771728908095,0.56624034,1975.1,1974.4,0.55027755]
[1771728922396,0.55362712,1974.9,1974.4,0.55027755]
[1771728939406,7.93151775,1975.4,1974.4,0.55027755]
[1771728939407,0.57970981,1975.1,1974.4,0.55027755]
[1771728940111,0.57970981,1975.3,1974.4,0.55027755]
[1771728940412,0.57970981,1975.2,1974.6,0.55693302]
[1771728941108,0.58517165,1975.4,1974.6,0.55693302]
[1771728941303,5.91756381,1975.3,1974.6,0.55693302]
[1771728941502,0.58517165,1975.4,1974.6,0.55693302]
[1771728941709,5.91655914,1975.3,1974.6,0.55693302]
[1771728942012,0.58517165,1975.4,1974.6,0.55693302]
[1771728946115,0.57970981,1975.2,1974.4,0.56163504]
[1771728957923,0.57970981,1975.2,1974.6,0.55693302]
[1771728960020,0.57970981,1975.0,1974.5,0.55693302]
[1771728962024,0.57970981,1975.0,1974.4,0.56163504]
[1771728964724,0.57970981,1975.0,1974.4,0.00470202]
[1771728966127,0.57970981,1975.0,1974.4,0.56163504]
[1771728974836,0.5664671,1975.2,1974.4,2.20321648]
[1771728975042,0.5664671,1975.0,1974.5,0.55429037]
[1771728982948,5.91983218,1974.9,1974.5,0.55429037]
[1771728983146,0.5664671,1974.8,1974.5,0.55429037]
[1771728993255,0.5664671,1974.8,1974.4,0.55899239]
[1771729003962,0.56620436,1975.0,1974.4,0.55899239]
[1771729004262,6.48725253,1974.9,1974.4,0.55899239]
[1771729004464,0.56620436,1974.9,1974.4,0.55899239]
[1771729008362,0.56620436,1974.8,1974.4,0.55899239]
[1771729012970,5.8669778,1975.1,1974.4,0.55899239]
[1771729012971,0.56620436,1974.9,1974.4,0.55899239]
[1771729013166,6.48522654,1974.8,1974.4,0.55899239]
[1771729013366,0.56620436,1974.8,1974.4,0.55899239]
[1771729028979,0.56620436,1974.8,1974.2,0.59571298]
[1771729029776,0.56620436,1974.8,1974.2,0.59988186]
[1771729058507,0.5510273,1974.6,1974.2,0.59988186]
[1771729059705,0.5510273,1974.6,1973.8,6.01399308]
[1771729059914,0.5510273,1974.6,1972.9,5.069]
[1771729059915,0.25339,1974.0,1972.8,10.62630106]
[1771729060105,0.5510273,1973.7,1973.2,0.60023555]
[1771729060309,0.5510273,1973.5,1972.3,0.60023555]
[1771729060608,0.5510273,1973.8,1972.5,0.60023555]
[1771729060911,0.5510273,1973.6,1972.5,0.60378823]
[1771729061113,0.5510273,1973.4,1972.7,0.60023555]
[1771729061910,0.5510273,1973.4,1972.8,7.71822721]
[1771729062207,0.5510273,1973.2,1972.8,7.71822721]
[1771729062609,0.5510273,1973.2,1972.8,8.31846276]
[1771729062803,0.5510273,1973.2,1972.9,0.60023555]
[1771729063408,0.5510273,1973.2,1972.8,7.71822721]
[1771729063614,0.5510273,1973.2,1972.8,8.31846276]
[1771729064715,0.5510273,1973.2,1972.9,0.60023555]
[1771729065214,0.5510273,1973.2,1972.8,8.31846276]
[1771729066115,0.5510273,1973.2,1972.9,0.60023555]
[1771729066413,0.5510273,1973.7,1973.0,7.71822721]
[1771729066606,0.5510273,1973.5,1973.0,8.31846276]
[1771729067216,0.5510273,1973.3,1973.0,8.31846276]
[1771729068213,0.5510273,1973.3,1973.0,7.71822721]
[1771729070119,0.5510273,1973.1,1973.0,7.71822721]
[1771729070411,0.5510273,1973.2,1973.0,7.71822721]
[1771729072217,9.44394829,1973.1,1972.5,1.07952979]
[1771729072418,7.8018059,1973.0,1972.5,3.28389056]
[1771729072620,7.8018059,1972.9,1972.4,1.07597711]
[1771729072814,1.64214239,1973.1,1972.4,1.57448214]
[1771729073015,7.79901944,1973.0,1972.4,1.38568222]
[1771729073215,7.79901944,1972.9,1972.4,1.38568222]
[1771729073416,7.79541745,1972.8,1972.4,2.46067148]
[1771729073617,4.22534289,1973.2,1972.4,2.46509243]
[1771729073812,7.79551143,1973.1,1972.4,2.46509243]
[1771729074018,0.43034274,1972.9,1972.4,2.46509243]
[1771729074519,0.43034274,1972.9,1972.4,1.39010317]
[1771729074722,0.45307218,1973.1,1972.5,1.06362454]
[1771729075019,7.79330532,1973.0,1972.5,1.06362454]
[1771729075221,0.45307218,1973.2,1972.7,0.93138203]
[1771729075416,8.31292831,1973.1,1972.7,0.7424572]
[1771729075625,8.31292831,1973.1,1972.4,0.00442095]
[1771729075626,0.5510273,1973.3,1972.9,0.63669697]
[1771729075811,8.34422589,1973.2,1972.9,0.43663513]
[1771729076012,7.79319859,1973.1,1972.9,1.82231735]
[1771729076318,8.34422589,1973.1,1972.9,1.38568222]
[1771729076518,0.5510273,1973.1,1972.9,1.38568222]
[1771729076818,0.5510273,1973.1,1972.8,0.63670466]
[1771729077120,0.5510273,1973.1,1972.8,0.83140931]
[1771729077321,0.5510273,1972.9,1972.5,0.40503331]
[1771729077715,0.7459583,1972.9,1972.5,0.40503331]
[1771729078220,0.5510273,1972.7,1972.4,0.6046565]
[1771729078514,0.5510273,1972.7,1972.4,0.00442095]
[1771729078823,0.5510273,1972.7,1972.4,0.6046565]
[1771729080216,0.5510273,1972.9,1972.4,0.6046565]
[1771729080425,4.22534289,1973.3,1972.5,0.60023555]
[1771729080426,0.5510273,1973.3,1972.5,0.60023555]
[1771729080723,7.67619718,1973.2,1972.7,0.60023555]
[1771729081021,0.5510273,1973.2,1972.7,0.60023555]
[1771729081617,0.5510273,1973.3,1972.7,0.60023555]
[1771729081823,0.5510273,1973.7,1972.9,0.60023555]
[1771729082024,2.19670913,1973.3,1972.9,0.60023555]
[1771729082223,0.5510273,1973.2,1972.9,0.60023555]
[1771729083924,0.5510273,1973.4,1972.9,0.60023555]
[1771729084124,8.2414944,1973.3,1972.9,0.60023555]
[1771729084329,0.5510273,1973.3,1972.9,0.60023555]
[1771729085227,7.70273274,1973.2,1972.9,0.60023555]
[1771729085428,0.5510273,1973.3,1972.9,0.60023555]
[1771729085622,8.25381262,1973.2,1972.9,0.60023555]
[1771729085927,0.5510273,1973.1,1972.5,0.60023555]
[1771729086127,0.5510273,1973.3,1972.5,0.60023555]
[1771729086328,8.25498905,1973.2,1972.5,0.60023555]
[1771729086528,7.70396175,1973.1,1972.5,0.60023555]
[1771729088430,7.70396175,1973.0,1972.5,0.60023555]
[1771729088633,0.5510273,1973.2,1972.5,0.60023555]
[1771729088834,7.60693933,1973.1,1972.5,0.60023555]
[1771729089128,7.60693933,1973.0,1972.5,0.60023555]
[1771729089328,7.62735353,1972.9,1972.5,0.60023555]
[1771729089530,7.62735353,1972.8,1972.5,0.60023555]
[1771729089727,1.29209126,1973.0,1972.5,0.60023555]
[1771729089930,8.93080974,1972.9,1972.5,0.60023555]
[1771729090125,7.63871848,1972.8,1972.5,0.60023555]
[1771729090326,1.29209126,1972.9,1972.5,0.60023555]
[1771729090533,7.63974025,1972.8,1972.5,0.60023555]
[1771729090827,1.29209126,1972.9,1972.5,0.60023555]
[1771729091028,7.65090544,1972.8,1972.5,0.60023555]
[1771729091231,7.6509556,1972.7,1972.5,0.60023555]
[1771729091529,1.29209126,1972.9,1972.5,0.60023555]
[1771729091727,7.65166032,1972.8,1972.5,0.60023555]
[1771729091923,7.65166032,1972.7,1972.5,0.60023555]
[1771729092130,1.29209126,1972.9,1972.5,0.60023555]
[1771729092328,7.65196301,1972.8,1972.5,0.60023555]
[1771729092629,7.65196301,1972.7,1972.5,0.60023555]
[1771729092826,1.29209126,1972.9,1972.5,0.60023555]
[1771729093028,7.61158054,1972.8,1972.5,0.60023555]
[1771729093228,7.61158054,1972.7,1972.5,0.60023555]
[1771729093429,1.29209126,1972.9,1972.5,0.60023555]
[1771729093624,7.61161492,1972.8,1972.5,0.60023555]
[1771729093931,7.61161492,1972.7,1972.5,0.60023555]
[1771729094131,1.29209126,1972.9,1972.5,0.60023555]
[1771729094331,7.61192089,1972.8,1972.5,0.60023555]
[1771729094530,7.61192089,1972.7,1972.5,0.60023555]
[1771729094732,1.29209126,1972.9,1972.5,0.60023555]
[1771729094932,7.61161769,1972.8,1972.5,0.60023555]
[1771729095134,7.61161769,1972.7,1972.5,0.60023555]
[1771729095431,1.29209126,1972.9,1972.5,0.60023555]
[1771729095728,7.61166522,1972.8,1972.5,0.60023555]
[1771729095932,5.31228542,1973.4,1972.8,1.64568183]
[1771729096132,3.03926226,1973.3,1972.8,1.64568183]
[1771729096435,4.37041241,1973.3,1972.8,1.64568183]
[1771729096836,1.33115015,1973.3,1972.8,1.64568183]
[1771729097027,1.33115015,1973.3,1972.8,0.53816261]
[1771729099231,4.37041241,1973.3,1972.8,0.53816261]
[1771729099432,3.03926226,1973.2,1972.8,0.53816261]
[1771729099633,1.34997737,1973.4,1972.8,0.53816261]
[1771729099832,3.03926226,1973.3,1972.8,0.53816261]
[1771729102139,4.38935198,1973.3,1972.8,0.53816261]
[1771729103839,1.34942271,1973.2,1972.8,0.53816261]
[1771729109640,4.38868497,1973.2,1972.8,0.53816261]
[1771729109845,1.34942271,1973.2,1972.8,0.53816261]
[1771729110037,4.38868497,1973.2,1972.8,0.53816261]
[1771729111142,1.34942271,1973.2,1972.8,0.53816261]
[1771729111344,4.38868497,1973.2,1972.8,0.53816261]
[1771729112041,1.34942271,1973.2,1972.8,0.53816261]
[1771729112241,4.38868497,1973.2,1972.8,0.53816261]
[1771729112442,1.34980002,1973.1,1972.8,0.53816261]
[1771729116046,1.34980002,1973.1,1972.5,0.36745535]
[1771729116240,4.3905545,1973.0,1972.5,0.36745535]
[1771729116438,1.35129224,1973.0,1972.5,0.36745535]
[1771729116639,4.3905545,1973.0,1972.5,0.36745535]
[1771729116838,1.35129224,1973.0,1972.5,0.36745535]
[1771729117446,4.3905545,1973.0,1972.5,0.36745535]
[1771729118148,4.3905545,1973.0,1972.7,0.35111281]
[1771729118347,1.45807032,1972.9,1972.4,0.35553376]
[1771729118952,1.45807032,1972.7,1972.4,0.35553376]
[1771729119147,1.45807032,1972.8,1972.4,0.35553376]
[1771729119353,4.49733258,1972.7,1972.4,0.35553376]
[1771729119649,1.45807032,1972.7,1972.4,0.00442095]
[1771729121854,1.45807032,1972.7,1972.4,0.63355015]
[1771729122054,1.45807032,1973.0,1972.4,0.63355015]
[1771729122261,1.45807032,1972.9,1972.4,0.63355015]
[1771729122951,3.03926226,1972.8,1972.4,0.63355015]
[1771729123652,4.49733258,1972.8,1972.4,0.63355015]
[1771729127360,1.45807032,1972.8,1972.4,0.63355015]
[1771729128165,3.03926226,1972.7,1972.4,0.63355015]
[1771729128966,1.45807032,1972.7,1972.4,0.63355015]
[1771729130164,1.45807032,1973.2,1972.4,0.63355015]
[1771729130360,1.45807032,1973.1,1972.4,0.63355015]
[1771729133665,1.45807032,1973.1,1972.4,0.00442095]
[1771729135570,1.45807032,1972.9,1972.4,1.43344148]
[1771729135772,1.45807032,1972.9,1972.4,0.00442095]
[1771729136072,1.45807032,1972.9,1972.4,1.43344148]
[1771729139573,1.45807032,1972.9,1972.4,0.00442095]
[1771729139770,1.45807032,1972.7,1972.4,0.00442095]
[1771729141675,1.45807032,1972.7,1972.4,1.43344148]
[1771729144177,3.03926226,1972.7,1972.4,1.43344148]
[1771729145580,4.49733258,1972.7,1972.4,1.43344148]
[1771729147281,1.45807032,1972.7,1972.4,1.43344148]
[1771729147481,1.45807032,1972.9,1972.4,1.43344148]
[1771729157084,1.45807032,1972.9,1972.4,0.00442095]
[1771729157287,1.45807032,1972.9,1972.4,1.46777544]
[1771729162293,1.54428325,1973.5,1972.4,1.46777544]
[1771729162494,1.54428325,1973.3,1972.4,1.46777544]
[1771729162693,1.54428325,1973.1,1972.4,1.46777544]
[1771729169195,1.54428325,1973.1,1972.4,0.00442095]
[1771729191314,1.39364153,1972.9,1971.9,1.4602534]
[1771729191608,1.39364153,1972.7,1972.0,7.9795043]
[1771729191810,1.39364153,1972.7,1971.9,7.9795043]
[1771729192009,1.39364153,1972.7,1971.8,7.9795043]
[1771729192209,1.39364153,1972.7,1971.8,9.4397577]
[1771729193107,1.39364153,1972.7,1971.8,7.9795043]
[1771729193302,1.39364153,1972.7,1971.7,1.46539922]
[1771729193303,1.39364153,1972.7,1971.7,9.44490352]
[1771729193706,1.39364153,1972.7,1971.9,1.4602534]
[1771729201919,1.39364153,1972.7,1972.2,3.10553839]
[1771729203420,1.39364153,1972.7,1972.2,1.64528499]
[1771729204222,1.39364153,1972.7,1972.2,3.10553839]
[1771729206124,1.39364153,1972.7,1972.1,1.4602534]
[1771729206322,1.39364153,1972.7,1972.0,1.64528499]
[1771729206517,1.39364153,1972.6,1971.8,3.10553839]
[1771729207019,1.39364153,1972.6,1972.0,1.64528499]
[1771729207220,1.39364153,1972.6,1972.0,3.10553839]
[1771729210026,1.39364153,1972.6,1972.1,1.3618879]
[1771729210222,1.39364153,1972.6,1972.0,3.00717289]
[1771729211424,1.39364153,1972.6,1972.0,1.3618879]
[1771729211624,1.39364153,1972.6,1972.0,3.00717289]
[1771729214627,1.39364153,1972.6,1972.1,1.30770978]
[1771729225432,1.33541932,1973.2,1972.4,2.95299477]
[1771729225736,1.33541932,1973.0,1972.4,1.30770978]
[1771729229140,10.80514734,1974.3,1972.5,1.30770978]
[1771729229141,1.33541932,1973.3,1972.5,1.30770978]
[1771729234247,1.33541932,1973.3,1972.6,2.95299477]
[1771729234545,1.33541932,1973.3,1972.7,1.30770978]
[1771729235247,1.33541932,1973.3,1972.9,1.30770978]
[1771729236444,1.33541932,1973.7,1973.0,2.95299477]
[1771729236645,1.33541932,1973.7,1973.1,1.30770978]
[1771729236948,1.33541932,1973.7,1973.1,1.3136772]
[1771729242849,1.19868042,1973.5,1973.1,0.00596742]
[1771729243246,1.19868042,1973.5,1972.6,1.26416677]
[1771729243441,1.19868042,1973.3,1972.6,1.26416677]
[1771729244050,1.19868042,1973.1,1972.6,1.26416677]
[1771729244251,1.19868042,1973.1,1972.6,1.2703887]
[1771729253357,0.00428888,1973.8,1972.6,1.2703887]
[1771729253358,1.19868042,1973.5,1973.1,1.26416677]
[1771729253758,1.19868042,1973.5,1972.9,1.26416677]
[1771729254556,1.19868042,1973.2,1972.7,1.26416677]
[1771729254761,1.19868042,1973.2,1972.6,1.2703887]
[1771729260460,1.19868042,1973.2,1972.7,1.26416677]
[1771729270666,1.26089386,1973.7,1972.7,1.26416677]
[1771729270864,1.26089386,1973.5,1972.7,1.26416677]
[1771729272160,1.26089386,1973.5,1972.8,1.23870203]
[1771729274563,1.14267373,1973.7,1972.9,1.23870203]
[1771729274770,0.48646066,1973.6,1972.9,1.23870203]
[1771729274970,1.14267373,1973.7,1972.9,1.23870203]
[1771729275170,1.14267373,1973.6,1972.9,1.23870203]
[1771729275866,1.14696261,1973.8,1972.9,1.23870203]
[1771729276074,1.62916193,1973.7,1973.0,1.23870203]
[1771729276267,1.14267373,1973.7,1973.0,1.23870203]
[1771729289986,1.14696261,1973.8,1973.0,1.23870203]
[1771729290186,0.00428888,1973.8,1973.0,1.23870203]
[1771729290988,0.00428888,1973.8,1973.2,1.23870203]
[1771729292589,1.14267373,1973.7,1973.2,1.23870203]
[1771729306713,1.19563886,1973.8,1973.2,1.23870203]
[1771729324337,1.19563886,1973.8,1973.4,1.12327671]
[1771729325940,1.64367159,1974.2,1973.1,7.9795043]
[1771729325941,1.19134998,1974.2,1973.6,1.12327671]
[1771729326239,1.19134998,1974.0,1973.6,1.12327671]
[1771729326841,0.11926232,1974.2,1973.6,1.12327671]
[1771729327135,1.64367159,1974.4,1973.6,1.12327671]
[1771729327136,0.11926232,1974.1,1973.6,1.12327671]
[1771729327740,0.12719832,1974.2,1973.6,1.12327671]
[1771729327939,0.20562857,1974.0,1973.6,1.12327671]
[1771729328541,0.00532699,1974.2,1973.6,1.12327671]
[1771729328742,0.2084993,1974.1,1973.6,1.12327671]
[1771729331852,0.19774676,1974.2,1973.8,1.0543575]
[1771729336953,0.00532699,1974.2,1973.8,1.0543575]
[1771729337453,0.15724068,1974.3,1973.8,1.0543575]
[1771729337653,1.64367159,1974.5,1973.8,1.0543575]
[1771729337654,0.15322577,1974.4,1973.8,1.0543575]
[1771729338554,0.15324261,1974.4,1974.0,1.06378964]
[1771729338754,1.64367159,1974.8,1974.0,1.07031343]
[1771729339057,6.17651649,1974.7,1974.0,1.07031343]
[1771729339255,0.48128007,1974.6,1974.0,1.07031343]
[1771729339453,1.64367159,1974.8,1974.0,1.07031343]
[1771729339650,1.64367159,1974.6,1974.0,1.07031343]
[1771729340155,0.00244001,1974.5,1974.0,1.07031343]
[1771729345360,0.0063964,1974.8,1974.0,1.07031343]
[1771729345361,1.65006799,1974.8,1974.0,1.07031343]
[1771729345659,0.48104618,1974.7,1974.0,1.07031343]
[1771729345861,0.48104618,1974.6,1974.0,1.07031343]
[1771729346158,1.65006799,1974.8,1974.0,1.07031343]
[1771729346359,0.48105893,1974.7,1974.0,1.07031343]
[1771729346559,0.48105893,1974.6,1974.0,1.07031343]
[1771729346760,1.65006799,1974.8,1974.0,1.07031343]
[1771729346961,0.48103581,1974.7,1974.0,1.07031343]
[1771729347156,0.48103581,1974.6,1974.0,1.07031343]
[1771729347460,1.65006799,1974.8,1974.0,1.07031343]
[1771729347662,0.4810442,1974.7,1974.0,1.07031343]
[1771729347859,0.4810442,1974.6,1974.0,1.07031343]
[1771729348061,1.65006799,1974.8,1974.0,1.07031343]
[1771729348262,0.48107763,1974.7,1974.0,1.07031343]
[1771729348465,0.0063964,1974.8,1974.2,2.77398459]
[1771729348761,0.0063964,1974.8,1974.3,1.130313]
[1771729353368,1.64367159,1975.4,1974.5,1.12065076]
[1771729353563,6.17530627,1975.3,1974.5,1.12065076]
[1771729353762,0.48436241,1975.2,1974.5,1.12065076]
[1771729354062,1.64367159,1975.4,1974.5,1.12065076]
[1771729354267,0.48441765,1975.3,1974.5,1.12065076]
[1771729354468,0.48441765,1975.2,1974.5,1.12065076]
[1771729354768,0.00563487,1975.3,1974.5,1.12065076]
[1771729354966,0.48434404,1975.2,1974.5,1.12065076]
[1771729355169,0.00563487,1975.3,1974.5,1.12065076]
[1771729359364,1.64367159,1975.0,1974.5,1.12065076]
[1771729359567,1.64367159,1975.2,1974.5,1.12065076]
[1771729367279,1.64367159,1974.8,1974.5,1.12065076]
[1771729368880,1.64367159,1975.0,1974.5,1.12065076]
[1771729370377,1.64367159,1974.8,1974.1,1.11227102]
[1771729370971,1.64367159,1974.6,1974.1,1.11227102]
[1771729372382,1.64367159,1974.8,1974.1,1.11227102]
[1771729372582,0.4881309,1974.7,1974.1,1.11227102]
[1771729372781,1.64367159,1974.8,1974.1,1.11227102]
[1771729372982,0.48813212,1974.7,1974.1,1.11227102]
[1771729373184,1.64367159,1974.8,1974.1,1.11227102]
[1771729373485,0.48813456,1974.7,1974.1,1.11227102]
[1771729373680,1.64367159,1974.8,1974.1,1.11227102]
[1771729373888,0.48817625,1974.7,1974.1,1.11227102]
[1771729374080,1.64367159,1974.8,1974.1,1.11227102]
[1771729374282,0.48817895,1974.7,1974.1,1.11227102]
[1771729374582,1.64367159,1974.8,1974.1,1.11227102]
[1771729374888,0.48822245,1974.7,1974.1,1.11227102]
[1771729375088,1.64367159,1974.8,1974.1,1.11227102]
[1771729375280,0.48821749,1974.7,1974.1,1.11227102]
[1771729375480,1.64367159,1974.8,1974.1,1.11227102]
[1771729375779,0.48826216,1974.7,1974.1,1.11227102]
[1771729376074,1.64367159,1974.8,1974.1,1.11227102]
[1771729376276,0.48825907,1974.7,1974.1,1.11227102]
[1771729376473,1.64367159,1974.8,1974.1,1.11227102]
[1771729376681,0.48830022,1974.7,1974.1,1.11227102]
[1771729376878,1.64367159,1974.8,1974.1,1.11227102]
[1771729377074,0.48830147,1974.7,1974.1,1.11227102]
[1771729377275,1.64367159,1974.8,1974.1,1.11227102]
[1771729377474,0.48828231,1974.7,1974.1,1.11227102]
[1771729377675,1.64367159,1974.8,1974.1,1.11227102]
[1771729377876,0.48834166,1974.7,1974.1,1.11227102]
[1771729378085,1.64367159,1974.8,1974.1,1.11227102]
[1771729378388,0.48833958,1974.7,1974.1,1.11227102]
[1771729378586,1.64367159,1974.8,1974.1,1.11227102]
[1771729378887,0.48838376,1974.7,1974.1,1.11227102]
[1771729379087,1.64367159,1974.8,1974.1,1.11227102]
[1771729379290,0.48838335,1974.7,1974.1,1.11227102]
[1771729379490,1.64367159,1974.8,1974.1,1.11227102]
[1771729379681,0.4883409,1974.7,1974.1,1.11227102]
[1771729379879,1.64367159,1974.8,1974.1,1.11227102]
[1771729380086,0.48834466,1974.7,1974.1,1.11227102]
[1771729380287,1.64367159,1974.8,1974.1,1.11227102]
[1771729380488,0.48831768,1974.7,1974.1,1.11227102]
[1771729380684,5.86320448,1975.2,1974.1,1.11227102]
[1771729380890,1.64367159,1974.4,1974.0,1.13252261]
[1771729382289,1.64367159,1974.6,1974.0,1.13252261]
[1771729383895,1.64288842,1974.9,1974.0,1.13252261]
[1771729384094,6.16946404,1974.8,1974.0,1.13252261]
[1771729384293,0.48808449,1974.7,1974.0,1.13252261]
[1771729384496,1.64288842,1974.9,1974.0,1.13252261]
[1771729384794,6.16905299,1974.8,1974.0,1.13252261]
[1771729385091,0.48805183,1974.7,1974.0,1.13252261]
[1771729385292,1.64288842,1974.9,1974.0,1.13252261]
[1771729385493,6.16886735,1974.8,1974.0,1.13252261]
[1771729385693,0.48803813,1974.7,1974.0,1.13252261]
[1771729385894,1.64288842,1974.9,1974.0,1.13252261]
[1771729386094,6.16886408,1974.8,1974.0,1.13252261]
[1771729386294,0.48803779,1974.7,1974.0,1.13252261]
[1771729386489,0.48803779,1974.6,1974.0,1.13252261]
[1771729386690,1.64288842,1974.9,1974.0,1.13252261]
[1771729386895,6.16883785,1974.8,1974.0,1.13252261]
[1771729387096,0.48804105,1974.7,1974.0,1.13252261]
[1771729387407,0.48804105,1974.6,1974.0,1.13252261]
[1771729387587,1.64288842,1974.9,1974.0,1.13252261]
[1771729387787,6.16893269,1974.8,1974.0,1.13252261]
[1771729387985,0.48804837,1974.7,1974.0,1.13252261]
[1771729388188,0.48804837,1974.6,1974.0,1.13252261]
[1771729388388,1.64288842,1974.9,1974.0,1.13252261]
[1771729388592,6.16883196,1974.8,1974.0,1.13252261]
[1771729388793,0.48804018,1974.7,1974.0,1.13252261]
[1771729389094,0.48804018,1974.6,1974.0,1.13252261]
[1771729389297,1.64288842,1974.9,1974.0,1.13252261]
[1771729389498,6.16913573,1974.8,1974.0,1.13252261]
[1771729389697,0.48806306,1974.7,1974.0,1.13252261]
[1771729389893,0.48806306,1974.6,1974.0,1.13252261]
[1771729390093,1.64288842,1974.9,1974.0,1.13252261]
[1771729390292,6.16955227,1974.8,1974.0,1.13252261]
[1771729390497,0.48805429,1974.7,1974.0,1.13252261]
[1771729390694,0.48805429,1974.6,1974.0,1.13252261]
[1771729390895,0.48811454,1974.5,1974.0,1.13252261]
[1771729391094,1.64288842,1974.9,1974.0,1.13252261]
[1771729391295,6.17033152,1974.8,1974.0,1.13252261]
[1771729391495,6.17033152,1974.7,1974.0,1.13252261]
[1771729391700,0.48811082,1974.6,1974.0,1.13252261]
[1771729391899,0.48811082,1974.5,1974.0,1.13252261]
[1771729392099,1.64288842,1974.9,1974.0,1.13252261]
[1771729392300,0.4881697,1974.8,1974.0,1.13252261]
[1771729392599,6.17119707,1974.7,1974.0,1.13252261]
[1771729392795,0.4881697,1974.6,1974.0,1.13252261]
[1771729392995,0.4881697,1974.5,1974.0,1.13252261]
[1771729393196,5.86014688,1974.9,1974.0,1.13252261]
[1771729393396,6.17220922,1974.8,1974.0,1.13252261]
[1771729393596,6.17220922,1974.7,1974.0,1.13252261]
[1771729393797,0.48823417,1974.6,1974.0,1.13252261]
[1771729394098,0.48823417,1974.5,1974.0,1.13252261]
[1771729394292,5.86014688,1974.9,1974.0,1.13252261]
[1771729394496,6.17357907,1974.8,1974.0,1.13252261]
[1771729394696,6.17357907,1974.7,1974.0,1.13252261]
[1771729394897,0.48841578,1974.6,1974.0,1.13252261]
[1771729395095,0.48841578,1974.5,1974.0,1.13252261]
[1771729395301,5.86014688,1974.9,1974.0,1.13252261]
[1771729395500,6.1752647,1974.8,1974.0,1.13252261]
[1771729395691,6.1752647,1974.7,1974.0,1.13252261]
[1771729395895,0.4885499,1974.6,1974.0,1.13252261]
[1771729396098,0.4885499,1974.5,1974.0,1.13252261]
[1771729396295,5.86014688,1974.9,1974.0,1.13252261]
[1771729396495,6.17738275,1974.8,1974.0,1.13252261]
[1771729396694,6.17738275,1974.7,1974.0,1.13252261]
[1771729396992,6.17738275,1974.6,1974.0,1.13252261]
[1771729397198,0.48871763,1974.5,1974.0,1.13252261]
[1771729397401,0.48871763,1974.4,1974.0,1.13252261]
[1771729397604,5.86014688,1974.9,1974.0,1.13252261]
[1771729397808,6.17558341,1974.8,1974.0,1.13252261]
[1771729397996,6.17558341,1974.7,1974.0,1.13252261]
[1771729398304,6.17558341,1974.6,1974.0,1.13252261]
[1771729398500,0.48877782,1974.5,1974.0,1.13252261]
[1771729398806,0.48877782,1974.4,1974.0,1.13252261]
[1771729398999,4.21725846,1974.8,1974.0,1.13252261]
[1771729399195,0.48888608,1974.7,1974.0,1.13252261]
[1771729399396,6.17695899,1974.6,1974.0,1.13252261]
[1771729399701,0.48888608,1974.5,1974.0,1.13252261]
[1771729399904,0.48888608,1974.4,1974.0,1.13252261]
[1771729400206,4.21725846,1974.8,1974.0,1.13252261]
[1771729400506,0.48904967,1974.7,1974.0,1.13252261]
[1771729400702,6.18187096,1974.6,1974.0,1.13252261]
[1771729401005,6.18187096,1974.5,1974.0,1.13252261]
[1771729401203,0.48904967,1974.4,1974.0,1.13252261]
[1771729401407,0.48904967,1974.3,1974.0,1.13252261]
[1771729401605,4.21725846,1974.8,1974.0,1.13252261]
[1771729401809,0.48929466,1974.7,1974.0,1.13252261]
[1771729402010,6.18220574,1974.6,1974.0,1.13252261]
[1771729402208,6.18220574,1974.5,1974.0,1.13252261]
[1771729402414,0.48929466,1974.4,1974.0,1.13252261]
[1771729402609,0.48929466,1974.3,1974.0,1.13252261]
[1771729402907,4.21725846,1974.8,1974.0,1.13252261]
[1771729403107,0.48930129,1974.7,1974.0,1.13252261]
[1771729403307,6.18228996,1974.6,1974.0,1.13252261]
[1771729403507,4.21725846,1974.8,1974.0,1.13252261]
[1771729403508,6.18228996,1974.5,1974.0,1.13252261]
[1771729403707,0.48930129,1974.4,1974.0,1.13252261]
[1771729403907,0.48930129,1974.3,1974.0,1.13252261]
[1771729404107,4.21725846,1974.8,1974.0,1.13252261]
[1771729404307,0.48931572,1974.7,1974.0,1.13252261]
[1771729404508,6.18261832,1974.6,1974.0,1.13252261]
[1771729404708,6.18261832,1974.5,1974.0,1.13252261]
[1771729404910,0.48931572,1974.4,1974.0,1.13252261]
[1771729405109,0.48931572,1974.3,1974.0,1.13252261]
[1771729405309,4.21725846,1974.8,1974.0,1.13252261]
[1771729405503,0.48934883,1974.7,1974.0,1.13252261]
[1771729405708,6.18292066,1974.6,1974.0,1.13252261]
[1771729405909,6.18292066,1974.5,1974.0,1.13252261]